{"text_format":"3","workbook":"xlsx","n_sheets":3,"sheets":["Start","Maandelijks studiebudget","chart_calcs"],"not_rendered":{"charts":4,"defined_names":19},"read":"whole","date_system":"1900"}

{"sheet":"Start","index":0,"n_rows":7,"n_cols":2,"rows_kept":7}
[null,"OVER DEZE SJABLOON"]
[null,"Gebruik het werkblad Maandelijks studiebudget om inkomsten, uitgaven en cashflow bij te houden."]
[null,"Voer de maandelijkse inkomsten en uitgaven in om de totale inkomsten en uitgaven te berekenen."]
[null,"De cashflow wordt automatisch berekend en de cashflowgrafiek wordt automatisch bijgewerkt."]
[null,"Gebruik de schuifregelaar om inkomsten-, uitgaven- en cashflowgrafieken te bekijken voor een maand en jaar."]
[null,"Opmerking: "]
[null,"Kolom A van het werkblad bevat aanvullende instructies. Deze tekst is opzettelijk verborgen. Als u tekst wilt verwijderen, selecteert u kolom A en drukt u op Delete. Als u de tekst zichtbaar wilt maken, selecteert u kolom A en wijzigt u de tekenkleur."]

{"sheet":"Maandelijks studiebudget","index":1,"n_rows":72,"n_cols":16,"rows_kept":72,"merged":[[5,1,14,3],[5,4,14,11],[5,12,13,15],[15,1,19,15],[20,1,21,15]]}
["Maak op dit werkblad een maandelijks studiebudget. De titel van dit werkblad staat in de cel rechts en in cel B1. Cellen in deze kolom bevatten handige instructies voor het gebruik van dit werkblad. De volgende aanwijzing staat in cel A4.","Maandelijks studiebudget"]
[]
[]
["Het label Inkomsten staat in de cel rechts, het label Uitgaven in cel E4 en het label Cashflow in cel M4.",{"$f":"chart_calcs!$D$6","v":"inkomsten januari:"},null,null,{"$f":"chart_calcs!$D$7","v":"uitgaven januari:"},{"$nulls":7},{"$f":"chart_calcs!$D$8","v":"cashflow januari:"}]
["De inkomsten worden automatisch bijgewerkt in de cel rechts, de uitgaven in cel E5 en de cashflow in cel M5.",{"$f":"\" \"&chart_calcs!$F$6","v":" € 1.225"},null,null,{"$f":"\" \"&chart_calcs!$F$7","v":" € 1.056"},{"$nulls":7},{"$f":"\" \"&chart_calcs!$F$8","v":" € 169"}]
["Het ringdiagram met het inkomstenoverzicht in de cel rechts, het uitgavenoverzicht in cel E6 en het staafdiagram met de positieve en negatieve cashflow in cel M6 worden automatisch bijgewerkt. De volgende aanwijzing staat in cel A17.","Deze cel bevat een ringdiagram met het inkomstenoverzicht voor de geselecteerde maand of het geselecteerde jaar.",null,null,"Deze cel bevat een ringdiagram met het uitgavenoverzicht voor de geselecteerde maand of het geselecteerde jaar.",{"$nulls":7},"Staafdiagram met positieve en negatieve cashflow voor geselecteerde maand of jaar staat in deze cel."]
{"$rows_empty":9}
[null,"Deze cel bevat een lijndiagram met de cashflow voor de geselecteerde maand of het geselecteerde jaar."]
["Het cashflowlijndiagram staat in de cel rechts. De volgende aanwijzing staat in cel A21."]
[]
[]
[]
["Gebruik de schuifregelaar rechts om gegevens en grafieken over inkomsten, uitgaven en cashflow per maand of jaar te bekijken. De volgende aanwijzing staat in cel A25.","Deze cel bevat de schuifregelaar."]
[]
[]
[]
["Selecteer de maand in de cel rechts. Druk op ALT+PIJL-OMLAAG voor opties, en vervolgens op PIJL-OMLAAG en ENTER om een selectie te maken.","JAN"]
["De geselecteerde periode wordt automatisch bijgewerkt in cel P26.",{"$nulls":14},{"$f":"SelectedPeriod","v":"JAN "}]
["De labels staan in deze rij, het label Maandelijks te besteden na uitgaven in de cel rechts, de maanden in de cellen C27 tot N27, het jaar in cel O27 en het toenamepercentage in cel P27.","Maandelijks te besteden na uitgaven",{"$f":"FirstMonth","v":"JAN "},{"$f":"NextMonth","v":"FEB "},"MRT ","APR ","MEI ","JUN ","JUL ","AUG ","SEP ","OKT ","NOV ","DEC ","JAAR  ","% incl. "]
["Het label Cashflow staat in de cel rechts. De cashflow per maand wordt automatisch berekend in de cellen C28 tot N28, de jaarlijkse hoeveelheid in cel O28 en het toenamepercentage in cel P28. De sparkline wordt automatisch bijgewerkt in cel Q28.","Cashflow",{"$f":"C37-C72","v":169},69,192,199,204,{"v":-771,"d":"-771 "},124,154,{"v":-721,"d":"-721 "},109,34,{"v":-61,"d":"-61 "},{"$f":"SUM(C28:N28)","v":{"v":-299,"d":"-299 "}},{"$f":"INDEX($C28:$O28,,SelectedPeriodColumn)/INDEX($C$37:$O$37,,SelectedPeriodColumn)","v":{"v":0.13795918367346938,"d":"13.8%"}}]
["Het label Cumulatieve cashflow staat in de cel rechts. De cumulatieve cashflow per maand wordt automatisch berekend in de cellen C29 tot N29, de jaarlijkse hoeveelheid in cel O29 en het toenamepercentage in cel P29. De sparkline wordt automatisch bijgewerkt in cel Q29. De volgende aanwijzing staat in cel A31.","Cumulatieve cashflow",{"$f":"SUM($C$28:C$28)","v":169},{"$f":"SUM($C$28:D$28)","v":238},{"$f":"SUM($C$28:E$28)","v":430},{"$f":"SUM($C$28:F$28)","v":629},{"$f":"SUM($C$28:G$28)","v":833},{"$f":"SUM($C$28:H$28)","v":62},{"$f":"SUM($C$28:I$28)","v":186},{"$f":"SUM($C$28:J$28)","v":340},{"$f":"SUM($C$28:K$28)","v":{"v":-381,"d":"-381 "}},{"$f":"SUM($C$28:L$28)","v":{"v":-272,"d":"-272 "}},{"$f":"SUM($C$28:M$28)","v":{"v":-238,"d":"-238 "}},{"$f":"SUM($C$28:N$28)","v":{"v":-299,"d":"-299 "}}]
[]
["Het label Maandelijkse inkomsten staat in de cel rechts, de maanden in de cellen C31 tot N31, het jaar in O31 en het toenamepercentage in cel P31. Voer de maandelijkse inkomsten in in de cellen B32 tot B36 en de maandbedragen in de cellen C32 tot N36. De jaarlijkse inkomsten worden automatisch berekend in de cellen O32 tot O36 en de toenamepercentages in de cellen P32 tot P36. De volgende aanwijzing staat in cel A37.","MAANDELIJKSE INKOMSTEN",{"$f":"FirstMonth","v":"JAN "},{"$f":"NextMonth","v":"FEB "},"MRT ","APR ","MEI ","JUN ","JUL ","AUG ","SEP ","OKT ","NOV ","DEC ","JAAR  ","% incl. "]
[null,"Financiële hulp (beurzen, leningen) die u ontvangt",0,0,750,750,750,750,750,750,750,750,750,750,{"$f":"SUM(C32:N32)","v":{"v":7500,"d":"7,500"}},{"$f":"INDEX($C32:$O32,,SelectedPeriodColumn)/INDEX($C$37:$O$37,,SelectedPeriodColumn)","v":{"v":0,"d":"0.0%"}}]
[null,"Nettosalarissen van een baan",450,450,450,450,450,450,450,450,550,350,350,350,{"v":5200,"d":"5,200"},{"$f":"INDEX($C33:$O33,,SelectedPeriodColumn)/INDEX($C$37:$O$37,,SelectedPeriodColumn)","v":{"v":0.3673469387755102,"d":"36.7%"}}]
[null,"Financiële bijdragen van familie",200,200,{"v":1000,"d":"1,000"},350,350,350,350,350,350,350,350,350,{"v":4550,"d":"4,550"},{"$f":"INDEX($C34:$O34,,SelectedPeriodColumn)/INDEX($C$37:$O$37,,SelectedPeriodColumn)","v":{"v":0.16326530612244897,"d":"16.3%"}}]
[null,"Opnamen van spaarrekening",500,350,150,0,0,0,0,0,0,0,0,0,{"v":1000,"d":"1,000"},{"$f":"INDEX($C35:$O35,,SelectedPeriodColumn)/INDEX($C$37:$O$37,,SelectedPeriodColumn)","v":{"v":0.40816326530612246,"d":"40.8%"}}]
[null,"Overig (alimentatie, uitkering, giften enz.)",75,75,75,75,75,75,75,75,75,75,75,75,900,{"$f":"INDEX($C36:$O36,,SelectedPeriodColumn)/INDEX($C$37:$O$37,,SelectedPeriodColumn)","v":{"v":0.061224489795918366,"d":"6.1%"}}]
["Het label Totale inkomsten staat in de cel rechts. De totale maandelijkse inkomsten worden automatisch berekend in de cellen C37 tot N37, de jaarlijkse inkomsten in cel O37 en het toenamepercentage in P37. De sparkline wordt automatisch bijgewerkt in cel Q37. De volgende aanwijzing staat in cel A39.","TOTALE INKOMSTEN",{"$f":"SUM(C32:C36)","v":{"v":1225,"d":"1,225"}},{"v":1075,"d":"1,075"},{"v":2425,"d":"2,425"},{"v":1625,"d":"1,625"},{"v":1625,"d":"1,625"},{"v":1625,"d":"1,625"},{"v":1625,"d":"1,625"},{"v":1625,"d":"1,625"},{"v":1725,"d":"1,725"},{"v":1525,"d":"1,525"},{"v":1525,"d":"1,525"},{"v":1525,"d":"1,525"},{"v":19150,"d":"19,150"},{"$f":"INDEX($C37:$O37,,SelectedPeriodColumn)/INDEX($C$37:$O$37,,SelectedPeriodColumn)","v":{"v":1,"d":"100.0%"}}]
[]
["Het label Maandelijkse uitgaven staat in de cel rechts, de maanden in de cellen C39 tot N39, het jaar in cel O39 en het label Toenamepercentage in cel P39.","MAANDELIJKSE UITGAVEN",{"$f":"FirstMonth","v":"JAN "},{"$f":"NextMonth","v":"FEB "},"MRT ","APR ","MEI ","JUN ","JUL ","AUG ","SEP ","OKT ","NOV ","DEC ","JAAR  ","% incl. "]
["Zet of wijzig het uitgave-item in de cel rechts en de maandbedragen in de cellen C40 tot N43. Het jaarbedrag wordt automatisch berekend in de cellen O40 tot O43 en het toenamepercentage in de cellen P40 tot P43. De sparkline wordt automatisch bijgewerkt in cel Q40. De volgende aanwijzing staat in cel A45.","Kost en inwoning",{"$f":"SUM(C41:C43)","v":565},565,565,565,565,565,565,565,565,565,565,565,{"$f":"SUM(C40:N40)","v":{"v":6780,"d":"6,780"}},{"$f":"INDEX($C40:$O40,,SelectedPeriodColumn)/INDEX($C$72:$O$72,,SelectedPeriodColumn)","v":{"v":0.5350378787878788,"d":"53.5%"}}]
[null,null,315,315,315,315,315,315,315,315,315,315,315,315,{"$f":"SUM(C41:N41)","v":{"v":3780,"d":"3,780"}},{"$f":"INDEX($C41:$O41,,SelectedPeriodColumn)/INDEX($C$72:$O$72,,SelectedPeriodColumn)","v":{"v":0.29829545454545453,"d":"29.8%"}}]
[null,null,200,200,200,200,200,200,200,200,200,200,200,200,{"$f":"SUM(C42:N42)","v":{"v":2400,"d":"2,400"}},{"$f":"INDEX($C42:$O42,,SelectedPeriodColumn)/INDEX($C$72:$O$72,,SelectedPeriodColumn)","v":{"v":0.1893939393939394,"d":"18.9%"}}]
[null,null,50,50,50,50,50,50,50,50,50,50,50,50,{"$f":"SUM(C43:N43)","v":600},{"$f":"INDEX($C43:$O43,,SelectedPeriodColumn)/INDEX($C$72:$O$72,,SelectedPeriodColumn)","v":{"v":0.04734848484848485,"d":"4.7%"}}]
[]
["Zet of wijzig het uitgave-item in de cel rechts en de maandbedragen in de cellen C45 tot N47. Het jaarbedrag wordt automatisch berekend in de cellen O45 tot O47 en het toenamepercentage in de cellen P45 tot P47. De sparkline wordt automatisch bijgewerkt in cel Q45. De volgende aanwijzing staat in cel A49.","Collegegeld en kosten",{"$f":"SUM(C46:C47)","v":0},0,750,0,0,650,0,0,650,0,0,0,{"$f":"SUM(C45:N45)","v":{"v":2050,"d":"2,050"}},{"$f":"INDEX($C45:$O45,,SelectedPeriodColumn)/INDEX($C$72:$O$72,,SelectedPeriodColumn)","v":{"v":0,"d":"0.0%"}}]
[null,null,0,0,500,0,0,500,0,0,500,0,0,0,{"$f":"SUM(C46:N46)","v":{"v":1500,"d":"1,500"}},{"$f":"INDEX($C46:$O46,,SelectedPeriodColumn)/INDEX($C$72:$O$72,,SelectedPeriodColumn)","v":{"v":0,"d":"0.0%"}}]
[null,null,0,0,250,0,0,150,0,0,150,0,0,0,{"$f":"SUM(C47:N47)","v":550},{"$f":"INDEX($C47:$O47,,SelectedPeriodColumn)/INDEX($C$72:$O$72,,SelectedPeriodColumn)","v":{"v":0,"d":"0.0%"}}]
[]
["Zet of wijzig het uitgave-item in de cel rechts en de maandbedragen in de cellen C49 tot N51. Het jaarbedrag wordt automatisch berekend in de cellen O49 tot O51 en het toenamepercentage in de cellen P49 tot P51. De sparkline wordt automatisch bijgewerkt in cel Q49. De volgende aanwijzing staat in cel A53.","Boeken en benodigdheden",{"$f":"SUM(C50:C51)","v":0},0,325,20,20,325,10,10,400,15,15,15,{"$f":"SUM(C49:N49)","v":{"v":1155,"d":"1,155"}},{"$f":"INDEX($C49:$O49,,SelectedPeriodColumn)/INDEX($C$72:$O$72,,SelectedPeriodColumn)","v":{"v":0,"d":"0.0%"}}]
[null,null,0,0,225,0,0,275,0,0,325,0,0,0,{"$f":"SUM(C50:N50)","v":825},{"$f":"INDEX($C50:$O50,,SelectedPeriodColumn)/INDEX($C$72:$O$72,,SelectedPeriodColumn)","v":{"v":0,"d":"0.0%"}}]
[null,null,0,0,100,20,20,50,10,10,75,15,15,15,{"$f":"SUM(C51:N51)","v":330},{"$f":"INDEX($C51:$O51,,SelectedPeriodColumn)/INDEX($C$72:$O$72,,SelectedPeriodColumn)","v":{"v":0,"d":"0.0%"}}]
[]
["Zet of wijzig het uitgave-item in de cel rechts en de maandbedragen in de cellen C53 tot N57. Het jaarbedrag wordt automatisch berekend in de cellen O53 tot O57 en het toenamepercentage in de cellen P53 tot P57. De sparkline wordt automatisch bijgewerkt in cel Q53. De volgende aanwijzing staat in cel A59.","Vervoer",{"$f":"SUM(C54:C57)","v":224},174,174,219,174,174,274,219,174,174,224,269,{"$f":"SUM(C53:N53)","v":{"v":2473,"d":"2,473"}},{"$f":"INDEX($C53:$O53,,SelectedPeriodColumn)/INDEX($C$72:$O$72,,SelectedPeriodColumn)","v":{"v":0.21212121212121213,"d":"21.2%"}}]
[null,null,30,30,30,75,30,30,30,75,30,30,30,75,{"$f":"SUM(C54:N54)","v":495},{"$f":"INDEX($C54:$O54,,SelectedPeriodColumn)/INDEX($C$72:$O$72,,SelectedPeriodColumn)","v":{"v":0.028409090909090908,"d":"2.8%"}}]
[null,null,129,129,129,129,129,129,129,129,129,129,129,129,{"$f":"SUM(C55:N55)","v":{"v":1548,"d":"1,548"}},{"$f":"INDEX($C55:$O55,,SelectedPeriodColumn)/INDEX($C$72:$O$72,,SelectedPeriodColumn)","v":{"v":0.12215909090909091,"d":"12.2%"}}]
[null,null,15,15,15,15,15,15,15,15,15,15,15,15,{"$f":"SUM(C56:N56)","v":180},{"$f":"INDEX($C56:$O56,,SelectedPeriodColumn)/INDEX($C$72:$O$72,,SelectedPeriodColumn)","v":{"v":0.014204545454545454,"d":"1.4%"}}]
[null,null,50,0,0,0,0,0,100,0,0,0,50,50,{"$f":"SUM(C57:N57)","v":250},{"$f":"INDEX($C57:$O57,,SelectedPeriodColumn)/INDEX($C$72:$O$72,,SelectedPeriodColumn)","v":{"v":0.04734848484848485,"d":"4.7%"}}]
[]
["Zet of wijzig het uitgave-item in de cel rechts en de maandbedragen in de cellen C59 tot N65. Het jaarbedrag wordt automatisch berekend in de cellen O59 tot O65 en het toenamepercentage in de cellen P59 tot P65. De sparkline wordt automatisch bijgewerkt in cel Q59. De volgende aanwijzing staat in cel A67.","Discretionair",{"$f":"SUM(C60:C65)","v":69},69,169,369,419,444,419,419,394,394,419,469,{"$f":"SUM(C59:N59)","v":{"v":4053,"d":"4,053"}},{"$f":"INDEX($C59:$O59,,SelectedPeriodColumn)/INDEX($C$72:$O$72,,SelectedPeriodColumn)","v":{"v":0.06534090909090909,"d":"6.5%"}}]
[null,null,0,0,0,50,100,100,100,100,75,75,100,100,800,{"$f":"INDEX($C60:$O60,,SelectedPeriodColumn)/INDEX($C$72:$O$72,,SelectedPeriodColumn)","v":{"v":0,"d":"0.0%"}}]
[null,null,69,69,69,69,69,69,69,69,69,69,69,69,828,{"$f":"INDEX($C61:$O61,,SelectedPeriodColumn)/INDEX($C$72:$O$72,,SelectedPeriodColumn)","v":{"v":0.06534090909090909,"d":"6.5%"}}]
[null,null,0,0,0,0,0,25,0,0,0,0,0,50,75,{"$f":"INDEX($C62:$O62,,SelectedPeriodColumn)/INDEX($C$72:$O$72,,SelectedPeriodColumn)","v":{"v":0,"d":"0.0%"}}]
[null,null,0,0,100,100,100,100,100,100,100,100,100,100,{"v":1000,"d":"1,000"},{"$f":"INDEX($C63:$O63,,SelectedPeriodColumn)/INDEX($C$72:$O$72,,SelectedPeriodColumn)","v":{"v":0,"d":"0.0%"}}]
[null,null,0,0,0,50,50,50,50,50,50,50,50,50,450,{"$f":"INDEX($C64:$O64,,SelectedPeriodColumn)/INDEX($C$72:$O$72,,SelectedPeriodColumn)","v":{"v":0,"d":"0.0%"}}]
[null,null,0,0,0,100,100,100,100,100,100,100,100,100,900,{"$f":"INDEX($C65:$O65,,SelectedPeriodColumn)/INDEX($C$72:$O$72,,SelectedPeriodColumn)","v":{"v":0,"d":"0.0%"}}]
[]
["Zet of wijzig het uitgave-item in de cel rechts en de maandbedragen in de cellen C67 tot N70. Het jaarbedrag wordt automatisch berekend in de cellen O67 tot O70 en het toenamepercentage in de cellen P67 tot P70. De sparkline wordt automatisch bijgewerkt in cel Q67. De volgende aanwijzing staat in cel A72.","Overige uitgaven",{"$f":"SUM(C68:C70)","v":198},{"$f":"SUM(D68:D70)","v":198},250,253,243,238,233,258,263,268,268,268,{"$f":"SUM(C67:N67)","v":{"v":2938,"d":"2,938"}},{"$f":"INDEX($C67:$O67,,SelectedPeriodColumn)/INDEX($C$72:$O$72,,SelectedPeriodColumn)","v":{"v":0.1875,"d":"18.8%"}}]
[null,null,123,123,123,123,123,123,123,123,123,123,123,123,{"$f":"SUM(C68:N68)","v":{"v":1476,"d":"1,476"}},{"$f":"INDEX($C68:$O68,,SelectedPeriodColumn)/INDEX($C$72:$O$72,,SelectedPeriodColumn)","v":{"v":0.11647727272727272,"d":"11.6%"}}]
[null,null,0,0,52,55,45,40,35,60,65,70,70,70,{"$f":"SUM(C69:N69)","v":562},{"$f":"INDEX($C69:$O69,,SelectedPeriodColumn)/INDEX($C$72:$O$72,,SelectedPeriodColumn)","v":{"v":0,"d":"0.0%"}}]
[null,null,75,75,75,75,75,75,75,75,75,75,75,75,{"$f":"SUM(C70:N70)","v":900},{"$f":"INDEX($C70:$O70,,SelectedPeriodColumn)/INDEX($C$72:$O$72,,SelectedPeriodColumn)","v":{"v":0.07102272727272728,"d":"7.1%"}}]
[]
["Het label Totale onkosten staat in de cel rechts. De totale maandelijkse uitgaven worden automatisch berekend in de cellen C72 tot N72, de jaarlijkse uitgaven in cel O72 en het toenamepercentage in P72. De sparkline wordt automatisch bijgewerkt in cel Q72.","TOTALE ONKOSTEN",{"$f":"SUM(C40,C45,C49,C53,C59,C67)","v":{"v":1056,"d":"1,056"}},{"v":1006,"d":"1,006"},{"v":2233,"d":"2,233"},{"v":1426,"d":"1,426"},{"v":1421,"d":"1,421"},{"v":2396,"d":"2,396"},{"v":1501,"d":"1,501"},{"v":1471,"d":"1,471"},{"v":2446,"d":"2,446"},{"v":1416,"d":"1,416"},{"v":1491,"d":"1,491"},{"v":1586,"d":"1,586"},{"$f":"SUM(C72:N72)","v":{"v":19449,"d":"19,449"}},{"$f":"INDEX($C72:$O72,,SelectedPeriodColumn)/INDEX($C$72:$O$72,,SelectedPeriodColumn)","v":{"v":1,"d":"100.0%"}}]

{"sheet":"chart_calcs","index":2,"n_rows":23,"n_cols":16,"rows_kept":23,"hidden":true}
["*** Dit blad moet verborgen blijven ***"]
[]
[{"$nulls":3},{"$f":"IFERROR(LOWER(TEXT(VALUE(SelectedPeriod&\" 1\"),\"mmmm\")),\"jaar\")","v":"januari"}]
[]
[{"$nulls":3},"Dynamische grafiektitels"]
[{"$nulls":3},{"$f":"\"inkomsten \"&D3&\":\"","v":"inkomsten januari:"},null,{"$f":"TEXT(INDEX('Maandelijks studiebudget'!$C$37:$O$37,,SelectedPeriodColumn),\"€ #.###\")","v":"€ 1.225"}]
[{"$nulls":3},{"$f":"\"uitgaven \"&D3&\":\"","v":"uitgaven januari:"},null,{"$f":"TEXT(INDEX('Maandelijks studiebudget'!$C$72:$O$72,,SelectedPeriodColumn),\"€ #.###\")","v":"€ 1.056"}]
[{"$nulls":3},{"$f":"\"cashflow \"&D3&\":\"","v":"cashflow januari:"},{"$f":"INDEX('Maandelijks studiebudget'!C28:O28,ScrollBarValue)","v":169},{"$f":"TEXT(E8,\"€ #.###\")","v":"€ 169"}]
[]
[]
[]
[{"$nulls":3},{"$f":"LOWER('Maandelijks studiebudget'!C27)","v":"jan "},{"$f":"LOWER('Maandelijks studiebudget'!D27)","v":"feb "},{"$f":"LOWER('Maandelijks studiebudget'!E27)","v":"mrt "},{"$f":"LOWER('Maandelijks studiebudget'!F27)","v":"apr "},{"$f":"LOWER('Maandelijks studiebudget'!G27)","v":"mei "},{"$f":"LOWER('Maandelijks studiebudget'!H27)","v":"jun "},{"$f":"LOWER('Maandelijks studiebudget'!I27)","v":"jul "},{"$f":"LOWER('Maandelijks studiebudget'!J27)","v":"aug "},{"$f":"LOWER('Maandelijks studiebudget'!K27)","v":"sep "},{"$f":"LOWER('Maandelijks studiebudget'!L27)","v":"okt "},{"$f":"LOWER('Maandelijks studiebudget'!M27)","v":"nov "},{"$f":"LOWER('Maandelijks studiebudget'!N27)","v":"dec "},{"$f":"LOWER('Maandelijks studiebudget'!O27)","v":"jaar  "}]
[null,null,"Waarde van schuifbalk: ",1]
[null,null,"Cashflowgrafiek: ",{"$f":"IF(SelectedPeriod='Maandelijks studiebudget'!C$31,IF('Maandelijks studiebudget'!$C$28:$O$28>=0,'Maandelijks studiebudget'!$C$28:$O$28,NA()),NA())","v":69},{"$f":"IF(SelectedPeriod='Maandelijks studiebudget'!D$31,IF('Maandelijks studiebudget'!$C$28:$O$28>=0,'Maandelijks studiebudget'!$C$28:$O$28,NA()),NA())","v":{"$error":"#N/A"}},{"$f":"IF(SelectedPeriod='Maandelijks studiebudget'!E$31,IF('Maandelijks studiebudget'!$C$28:$O$28>=0,'Maandelijks studiebudget'!$C$28:$O$28,NA()),NA())","v":{"$error":"#N/A"}},{"$f":"IF(SelectedPeriod='Maandelijks studiebudget'!F$31,IF('Maandelijks studiebudget'!$C$28:$O$28>=0,'Maandelijks studiebudget'!$C$28:$O$28,NA()),NA())","v":{"$error":"#N/A"}},{"$f":"IF(SelectedPeriod='Maandelijks studiebudget'!G$31,IF('Maandelijks studiebudget'!$C$28:$O$28>=0,'Maandelijks studiebudget'!$C$28:$O$28,NA()),NA())","v":{"$error":"#N/A"}},{"$f":"IF(SelectedPeriod='Maandelijks studiebudget'!H$31,IF('Maandelijks studiebudget'!$C$28:$O$28>=0,'Maandelijks studiebudget'!$C$28:$O$28,NA()),NA())","v":{"$error":"#N/A"}},{"$f":"IF(SelectedPeriod='Maandelijks studiebudget'!I$31,IF('Maandelijks studiebudget'!$C$28:$O$28>=0,'Maandelijks studiebudget'!$C$28:$O$28,NA()),NA())","v":{"$error":"#N/A"}},{"$f":"IF(SelectedPeriod='Maandelijks studiebudget'!J$31,IF('Maandelijks studiebudget'!$C$28:$O$28>=0,'Maandelijks studiebudget'!$C$28:$O$28,NA()),NA())","v":{"$error":"#N/A"}},{"$f":"IF(SelectedPeriod='Maandelijks studiebudget'!K$31,IF('Maandelijks studiebudget'!$C$28:$O$28>=0,'Maandelijks studiebudget'!$C$28:$O$28,NA()),NA())","v":{"$error":"#N/A"}},{"$f":"IF(SelectedPeriod='Maandelijks studiebudget'!L$31,IF('Maandelijks studiebudget'!$C$28:$O$28>=0,'Maandelijks studiebudget'!$C$28:$O$28,NA()),NA())","v":{"$error":"#N/A"}},{"$f":"IF(SelectedPeriod='Maandelijks studiebudget'!M$31,IF('Maandelijks studiebudget'!$C$28:$O$28>=0,'Maandelijks studiebudget'!$C$28:$O$28,NA()),NA())","v":{"$error":"#N/A"}},{"$f":"IF(SelectedPeriod='Maandelijks studiebudget'!N$31,IF('Maandelijks studiebudget'!$C$28:$O$28>=0,'Maandelijks studiebudget'!$C$28:$O$28,NA()),NA())","v":{"$error":"#N/A"}},{"$f":"IF(SelectedPeriod='Maandelijks studiebudget'!O$31,IF('Maandelijks studiebudget'!$C$28:$O$28>=0,'Maandelijks studiebudget'!$C$28:$O$28,NA()),NA())","v":{"$error":"#N/A"}}]
[null,null,"Cumulatief: ",{"$f":"IF(SelectedPeriod='Maandelijks studiebudget'!C$31,IF('Maandelijks studiebudget'!$C$28:$O$28<0,'Maandelijks studiebudget'!$C$28:$O$28,NA()),NA())","v":{"$error":"#N/A"}},{"$f":"IF(SelectedPeriod='Maandelijks studiebudget'!D$31,IF('Maandelijks studiebudget'!$C$28:$O$28<0,'Maandelijks studiebudget'!$C$28:$O$28,NA()),NA())","v":{"$error":"#N/A"}},{"$f":"IF(SelectedPeriod='Maandelijks studiebudget'!E$31,IF('Maandelijks studiebudget'!$C$28:$O$28<0,'Maandelijks studiebudget'!$C$28:$O$28,NA()),NA())","v":{"$error":"#N/A"}},{"$f":"IF(SelectedPeriod='Maandelijks studiebudget'!F$31,IF('Maandelijks studiebudget'!$C$28:$O$28<0,'Maandelijks studiebudget'!$C$28:$O$28,NA()),NA())","v":{"$error":"#N/A"}},{"$f":"IF(SelectedPeriod='Maandelijks studiebudget'!G$31,IF('Maandelijks studiebudget'!$C$28:$O$28<0,'Maandelijks studiebudget'!$C$28:$O$28,NA()),NA())","v":{"$error":"#N/A"}},{"$f":"IF(SelectedPeriod='Maandelijks studiebudget'!H$31,IF('Maandelijks studiebudget'!$C$28:$O$28<0,'Maandelijks studiebudget'!$C$28:$O$28,NA()),NA())","v":{"$error":"#N/A"}},{"$f":"IF(SelectedPeriod='Maandelijks studiebudget'!I$31,IF('Maandelijks studiebudget'!$C$28:$O$28<0,'Maandelijks studiebudget'!$C$28:$O$28,NA()),NA())","v":{"$error":"#N/A"}},{"$f":"IF(SelectedPeriod='Maandelijks studiebudget'!J$31,IF('Maandelijks studiebudget'!$C$28:$O$28<0,'Maandelijks studiebudget'!$C$28:$O$28,NA()),NA())","v":{"$error":"#N/A"}},{"$f":"IF(SelectedPeriod='Maandelijks studiebudget'!K$31,IF('Maandelijks studiebudget'!$C$28:$O$28<0,'Maandelijks studiebudget'!$C$28:$O$28,NA()),NA())","v":{"$error":"#N/A"}},{"$f":"IF(SelectedPeriod='Maandelijks studiebudget'!L$31,IF('Maandelijks studiebudget'!$C$28:$O$28<0,'Maandelijks studiebudget'!$C$28:$O$28,NA()),NA())","v":{"$error":"#N/A"}},{"$f":"IF(SelectedPeriod='Maandelijks studiebudget'!M$31,IF('Maandelijks studiebudget'!$C$28:$O$28<0,'Maandelijks studiebudget'!$C$28:$O$28,NA()),NA())","v":{"$error":"#N/A"}},{"$f":"IF(SelectedPeriod='Maandelijks studiebudget'!N$31,IF('Maandelijks studiebudget'!$C$28:$O$28<0,'Maandelijks studiebudget'!$C$28:$O$28,NA()),NA())","v":{"$error":"#N/A"}},{"$f":"IF(SelectedPeriod='Maandelijks studiebudget'!O$31,IF('Maandelijks studiebudget'!$C$28:$O$28<0,'Maandelijks studiebudget'!$C$28:$O$28,NA()),NA())","v":{"$error":"#N/A"}}]
[]
[]
[null,null,"GRAFIEKGEGEVENS INKOMSTEN"]
[null,null,"Financiële hulp (beurzen, leningen) die u ontvangt",{"$f":"'Maandelijks studiebudget'!P32","v":{"v":0,"d":"0.0%"}}]
[null,null,"Nettosalarissen van een baan",{"$f":"'Maandelijks studiebudget'!P33","v":{"v":0.3673469387755102,"d":"36.7%"}}]
[null,null,"Financiële bijdragen van familie",{"$f":"'Maandelijks studiebudget'!P34","v":{"v":0.16326530612244897,"d":"16.3%"}}]
[null,null,"Opnamen van spaarrekening",{"$f":"'Maandelijks studiebudget'!P35","v":{"v":0.40816326530612246,"d":"40.8%"}}]
[null,null,"Overig (alimentatie, uitkering, giften enz.)",{"$f":"'Maandelijks studiebudget'!P36","v":{"v":0.061224489795918366,"d":"6.1%"}}]